fUSD/lending_fUSD_20260504
["ID","MTS","AMOUNT","RATE_DAILY","PERIOD"]
[421570617,1777891848000,-150.0,0.00037834,2]
[421570610,1777891848000,-5954.0,0.00036874,2]
[421570614,1777891848000,-5956.0,0.00037412,2]
[421570609,1777891848000,-150.0,0.00036834,2]
[421570606,1777891848000,-1049.12660099,0.00036432,2]
[421570611,1777891848000,-163.0,0.000372,30]
[421570605,1777891848000,-504.0,0.00036331,12]
[421570613,1777891848000,-500.0,0.00037344,5]
[421570608,1777891848000,-401.97816903,0.00036796,5]
[421570607,1777891848000,-1500.0,0.00036796,5]
[421570604,1777891848000,-1000.0,0.00036248,5]
[421570603,1777891848000,-1000.0,0.00036248,5]
[421570602,1777891848000,-299.0,0.00036201,30]
[421570625,1777891848000,-300.0,0.00038136,2]
[421570616,1777891848000,-150.0,0.00037694,2]
[421570631,1777891848000,-256.63,0.0003863,60]
[421570641,1777891848000,-177.44,0.0003912,2]
[421570623,1777891848000,-327.12,0.00038034,30]
[421570626,1777891848000,-194.34,0.00038155,2]
[421570647,1777891848000,-32788.56432997,0.0003913,2]
[421570646,1777891848000,-200.0,0.00039129,30]
[421570644,1777891848000,-177.44,0.0003912,2]
[421570643,1777891848000,-177.44,0.0003912,2]
[421570636,1777891848000,-1000.0,0.000389,14]
[421570637,1777891848000,-5000.0,0.0003903,2]
[421570639,1777891848000,-177.44,0.0003912,2]
[421570638,1777891848000,-177.44,0.0003912,2]
[421570640,1777891848000,-177.44,0.0003912,2]
[421570642,1777891848000,-177.44,0.0003912,2]
[421570635,1777891848000,-150.0,0.00038834,2]
[421570634,1777891848000,-700.0,0.000388,14]
[421570624,1777891848000,-300.000001,0.00038136,2]
[421570645,1777891848000,-150.0,0.00039129,2]
[421570633,1777891848000,-500.0,0.000387,14]
[421570627,1777891848000,-5032.0,0.00038563,2]
[421570629,1777891848000,-504.0,0.00038629,14]
[421570628,1777891848000,-176.75690271,0.00038564,5]
[421570632,1777891848000,-228.46,0.000387,30]
[421570649,1777891924000,280.0,8.219e-05,2]
[421570655,1777892632000,280.0,8.219e-05,2]
[421570664,1777892949000,-164.76396339,0.000187,2]
[421570658,1777892949000,-250.0,0.00014,2]
[421570660,1777892949000,-344.58478586,0.00015385,2]
[421570659,1777892949000,-160.55,0.000141,2]
[421570662,1777892949000,-2374.67212638,0.000154,2]
[421570663,1777892949000,-500.0,0.000186,2]
[421570665,1777892949000,-162.48539177,0.00018727,2]
[421570661,1777892949000,-500.0,0.000154,2]
[421570667,1777892949000,-164.76396339,0.00019,2]
[421570666,1777892949000,-164.76396339,0.000189,2]
[421570668,1777892949000,-159.0,0.0002,2]
[421570672,1777892949000,-156.45,0.00024658,2]
[421570670,1777892949000,-172.52326,0.00022,2]
[421570673,1777892949000,-124.13932982,0.00026296,2]
[421570671,1777892949000,-151.0,0.00024324,2]
[421570669,1777892949000,-159.0,0.00021,2]
[421570675,1777893028000,280.0,8.219e-05,2]
[421570696,1777893031000,-238.64,0.00029576,2]
[421570698,1777893031000,-277.0,0.0002974,10]
[421570692,1777893031000,-151.0,0.00028267,2]
[421570693,1777893031000,-157.6,0.00028586,2]
[421570694,1777893031000,-1000.0,0.00028645,2]
[421570702,1777893031000,-270.93001059,0.00029939,2]
[421570699,1777893031000,-641.0,0.0002974,10]
[421570695,1777893031000,-150.0,0.00029534,2]
[421570690,1777893031000,-1200.0,0.00028241,2]
[421570701,1777893031000,-490.0657167,0.000299,2]
[421570706,1777893031000,-500.0,0.00029999,2]
[421570700,1777893031000,-2500.0,0.000299,2]
[421570697,1777893031000,-166.0,0.0002974,10]
[421570685,1777893031000,-261.67016809,0.00026974,2]
[421570689,1777893031000,-238.64,0.00028206,2]
[421570686,1777893031000,-525.88,0.00027009,2]
[421570687,1777893031000,-152.37,0.00027158,2]
[421570683,1777893031000,-242.08,0.00024658,2]
[421570684,1777893031000,-26.86067018,0.00026296,2]
[421570682,1777893031000,-717.16017808,0.000195,2]
[421570680,1777893031000,-717.16017808,0.000191,2]
[421570681,1777893031000,-717.16017808,0.000193,2]
[421570679,1777893031000,-717.16017808,0.000189,2]
[421570688,1777893031000,-300.0,0.00028205,2]
[421570678,1777893031000,-458.28856521,0.000187,2]
[421570677,1777893031000,-258.87161287,0.000187,2]
[421570707,1777893031000,-500.0,0.00029999,2]
[421570691,1777893031000,-5000.0,0.00028242,2]
[421570708,1777893031000,-257.83822898,0.00029999,2]
[421570709,1777893031000,-390.5641963,0.00029999,2]
[421570711,1777893031000,-500.0,0.00029999,2]
[421570710,1777893031000,-500.0,0.00029999,2]
[421570735,1777893031000,-500.0,0.00029999,2]
[421570727,1777893031000,-500.0,0.00029999,2]
[421570728,1777893031000,-500.0,0.00029999,2]
[421570726,1777893031000,-500.0,0.00029999,2]
[421570725,1777893031000,-500.0,0.00029999,2]
[421570730,1777893031000,-500.0,0.00029999,2]
[421570734,1777893031000,-500.0,0.00029999,2]
[421570732,1777893031000,-500.0,0.00029999,2]
[421570731,1777893031000,-500.0,0.00029999,2]
[421570729,1777893031000,-500.0,0.00029999,2]
[421570724,1777893031000,-500.0,0.00029999,2]
[421570713,1777893031000,-500.0,0.00029999,2]
[421570733,1777893031000,-500.0,0.00029999,2]
[421570723,1777893031000,-500.0,0.00029999,2]
[421570703,1777893031000,-161.38,0.00029975,2]
[421570720,1777893031000,-500.0,0.00029999,2]
[421570704,1777893031000,-195.39,0.0002999,2]
[421570705,1777893031000,-500.0,0.00029999,2]
[421570715,1777893031000,-500.0,0.00029999,2]
[421570718,1777893031000,-500.0,0.00029999,2]
[421570712,1777893031000,-207.35099909,0.00029999,2]
[421570716,1777893031000,-500.0,0.00029999,2]
[421570717,1777893031000,-500.0,0.00029999,2]
[421570714,1777893031000,-500.0,0.00029999,2]
[421570719,1777893031000,-500.0,0.00029999,2]
[421570721,1777893031000,-262.24253712,0.00029999,2]
[421570722,1777893031000,-500.0,0.00029999,2]
[421570757,1777893032000,-270.93001052,0.00031959,2]
[421570753,1777893032000,-163.0,0.00031184,30]
[421570756,1777893032000,-400.0,0.00031757,2]
[421570755,1777893032000,-490.06571669,0.00031667,2]
[421570754,1777893032000,-159.0,0.00031184,30]
[421570759,1777893032000,-163.0,0.00032184,30]
[421570758,1777893032000,-1852.42,0.00031963,2]
[421570774,1777893032000,-270.93001052,0.0003499,2]
[421570763,1777893032000,-928.0,0.00032257,2]
[421570764,1777893032000,-150.0,0.00032562,2]
[421570765,1777893032000,-270.93001052,0.00032969,2]
[421570766,1777893032000,-165.13,0.00033009,2]
[421570772,1777893032000,-150.0,0.0003419,2]
[421570752,1777893032000,-150.0,0.00031011,2]
[421570762,1777893032000,-2463.0,0.00032257,2]
[421570751,1777893032000,-270.93001052,0.00030949,2]
[421570738,1777893032000,-811.848,0.00029999,24]
[421570750,1777893032000,-3535.0,0.00030874,2]
[421570773,1777893032000,-152.0,0.00034434,30]
[421570746,1777893032000,-500.0,0.00030547,2]
[421570747,1777893032000,-1163.0,0.00030625,2]
[421570739,1777893032000,-164.18404972,0.00029999,24]
[421570736,1777893032000,-500.0,0.00029999,2]
[421570737,1777893032000,-500.0,0.00029999,2]
[421570761,1777893032000,-151.0,0.0003221,5]
[421570741,1777893032000,-9826.431649,0.0003,2]
[421570744,1777893032000,-1221.0,0.0003045,2]
[421570740,1777893032000,-567000.0,0.0003,20]
[421570745,1777893032000,-287.0,0.00030455,2]
[421570743,1777893032000,-500.0,0.00030273,2]
[421570760,1777893032000,-159.0,0.00032184,30]
[421570748,1777893032000,-503.02373868,0.00030821,2]
[421570742,1777893032000,-151.0,0.00030239,2]
[421570767,1777893032000,-159.0,0.00033184,30]
[421570780,1777893032000,-328.38780487,0.00035616,7]
[421570771,1777893032000,-159.0,0.00034184,30]
[421570791,1777893032000,-490.06571669,0.00036969,2]
[421570789,1777893032000,-42769.3521223,0.00036539,2]
[421570795,1777893032000,-517.15799466,0.00037513,2]
[421570799,1777893032000,-1565.63480144,0.0003793,2]
[421570793,1777893032000,-159.0,0.00037184,30]
[421570797,1777893032000,-245.0,0.00037846,2]
[421570796,1777893032000,-150.0,0.00037694,2]
[421570792,1777893032000,-270.93001052,0.0003701,2]
[421570801,1777893032000,-2414.2214,0.0003793,2]
[421570800,1777893032000,-407.0,0.0003793,2]
[421570804,1777893032000,-4293.43565038,0.0003793,2]
[421570802,1777893032000,-1648.83586652,0.0003793,2]
[421570803,1777893032000,-6368.32208559,0.0003793,2]
[421570770,1777893032000,-151.0,0.00034182,7]
[421570798,1777893032000,-158530.54824168,0.0003793,2]
[421570788,1777893032000,-159.0,0.00036184,30]
[421570790,1777893032000,-3113.7465361,0.00036539,2]
[421570787,1777893032000,-225.0,0.00036164,2]
[421570768,1777893032000,-490.06571669,0.00033435,2]
[421570769,1777893032000,-270.93001052,0.00033979,2]
[421570776,1777893032000,-490.06571669,0.00035202,2]
[421570775,1777893032000,-159.0,0.00035184,30]
[421570777,1777893032000,-2463.0,0.00035257,2]
[421570794,1777893032000,-210.0,0.00037491,2]
[421570779,1777893032000,-500.0,0.00035616,7]
[421570783,1777893032000,-270.93001052,0.00036,2]
[421570782,1777893032000,-150.0,0.00035899,2]
[421570781,1777893032000,-400.0,0.00035726,2]
[421570805,1777893032000,-1557.63357986,0.0003793,2]
[421570786,1777893032000,-336.0,0.00036164,2]
[421570785,1777893032000,-151.0,0.00036153,30]
[421570784,1777893032000,-150.0,0.00036148,2]
[421570778,1777893032000,-500.0,0.00035616,7]
[421570827,1777893037000,-154.22,0.00023151,2]
[421570826,1777893037000,-154.22,0.00021789,2]
[421570829,1777893037000,-154.22,0.00025874,2]
[421570828,1777893037000,-154.22,0.00024513,2]
[421570825,1777893037000,-154.22,0.00020427,2]
[421570831,1777893037000,-558.67724862,0.0003793,2]
[421570830,1777893037000,-1175.00275138,0.00027397,2]
[421570832,1777893037000,-48993.48432967,0.0003793,2]
[421570833,1777893037000,-380.52932165,0.0003793,2]
[421570835,1777893037000,-26072.27627549,0.0003793,2]
[421570824,1777893037000,-154.22,0.00019065,2]
[421570834,1777893037000,-162.48539177,0.000189,2]
[421570862,1777893039000,-154.22,0.00027236,2]
[421570866,1777893039000,-154.22,0.00032683,2]
[421570867,1777893039000,-154.22,0.00034045,2]
[421570864,1777893039000,-154.22,0.0002996,2]
[421570865,1777893039000,-154.22,0.00031322,2]
[421570863,1777893039000,-154.22,0.00028598,2]
[421570870,1777893040000,-1641.75583003,0.0003793,2]
[421570869,1777893040000,-154.22,0.00036769,2]
[421570871,1777893040000,-14420.98572575,0.0003793,2]
[421570872,1777893040000,-1019.64210675,0.0003793,2]
[421570868,1777893040000,-154.22,0.00035407,2]
[421570900,1777893042000,-380.51299992,0.0003793,2]
[421570916,1777893045000,-726.65367492,0.00020951,2]
[421570917,1777893046000,-502.0,0.00020951,2]
[421570918,1777893046000,-1371.38632508,0.00020951,2]
[421570919,1777893046000,-209.14310219,0.00022562,2]
[421570929,1777893676000,-388.94193208,0.00019999,2]
[421570930,1777893724000,280.0,8.219e-05,2]
[421570931,1777893798000,280.0,8.219e-05,2]
[421570934,1777893945000,4473.780851,0.00030136,120]
[421570956,1777894231000,-500.0,0.0002,2]
[421570955,1777894231000,-500.0,0.0002,2]
[421570959,1777894231000,-223.0,0.0002,2]
[421570948,1777894231000,-300.0,0.00016,2]
[421570958,1777894231000,-500.0,0.0002,2]
[421570947,1777894231000,-712.97,0.000141,2]
[421570945,1777894231000,-64324.46101559,0.00012,2]
[421570946,1777894231000,-250.0,0.00014,2]
[421570944,1777894231000,-272.12352312,0.00012,2]
[421570949,1777894231000,-350.0,0.00018,2]
[421570954,1777894231000,-500.0,0.0002,2]
[421570952,1777894231000,-1200.0,0.00019999,2]
[421570950,1777894231000,-413.61,0.00018856,2]
[421570951,1777894231000,-300.0,0.00019999,2]
[421570953,1777894231000,-238.0,0.00019999,2]
[421570960,1777894231000,-156.0,0.0002,2]
[421570962,1777894231000,-327.0,0.0002,2]
[421570961,1777894231000,-161.0,0.0002,2]
[421570964,1777894231000,-223.0,0.00021,2]
[421570963,1777894231000,-400.0,0.0002,2]
[421570967,1777894231000,-402.0,0.00021126,2]
[421570965,1777894231000,-327.0,0.00021,2]
[421570966,1777894231000,-263.0,0.0002101,2]
[421570957,1777894231000,-500.0,0.0002,2]
[421571009,1777894232000,-394.8,0.00029999,60]
[421571003,1777894232000,-150.0,0.00029534,2]
[421571005,1777894232000,-171.29,0.00029683,7]
[421571007,1777894232000,-171.32,0.00029774,7]
[421570997,1777894232000,-504.0,0.00027137,2]
[421571001,1777894232000,-2000.0,0.00029455,2]
[421570996,1777894232000,-500.0,0.00026568,2]
[421571011,1777894232000,-504.0,0.00030074,5]
[421570993,1777894232000,-151.0,0.00026296,2]
[421571004,1777894232000,-171.29,0.00029683,2]
[421571002,1777894232000,-1179.63445633,0.00029533,2]
[421571014,1777894232000,-236.0,0.00030563,2]
[421571006,1777894232000,-171.32,0.00029774,2]
[421571008,1777894232000,-500.0,0.00029999,60]
[421571010,1777894232000,-321.37,0.00030064,10]
[421570995,1777894232000,-160.0,0.0002653,2]
[421571012,1777894232000,-6288.44823652,0.00030137,7]
[421571015,1777894232000,-290.0,0.00030886,2]
[421571016,1777894232000,-150.0,0.00031011,2]
[421571026,1777894232000,-155.0,0.00031187,30]
[421571027,1777894232000,-327.0,0.00031187,30]
[421571017,1777894232000,-1691.7929737,0.00031039,2]
[421571018,1777894232000,-212.4487687,0.00031039,2]
[421571019,1777894232000,-2918.1232617,0.00031039,2]
[421571021,1777894232000,-160.0,0.00031186,30]
[421571013,1777894232000,-151.0,0.00030239,2]
[421570992,1777894232000,-346.0,0.00025,2]
[421570987,1777894232000,-151.0,0.00024324,2]
[421570991,1777894232000,-229.0,0.00025,2]
[421571022,1777894232000,-223.0,0.00031186,30]
[421570970,1777894232000,-223.0,0.00022,2]
[421570968,1777894232000,-411.0,0.00021464,2]
[421570969,1777894232000,-1680.0,0.00021881,2]
[421570971,1777894232000,-327.0,0.00022,2]
[421570972,1777894232000,-450.0,0.00022,2]
[421570973,1777894232000,-151.0,0.00022353,2]
[421570975,1777894232000,-223.0,0.00023,2]
[421570976,1777894232000,-327.0,0.00023,2]
[421570977,1777894232000,-179.89109,0.0002334,2]
[421570974,1777894232000,-361.29,0.00022562,2]
[421570985,1777894232000,-327.0,0.00024,2]
[421570994,1777894232000,-162.48539177,0.0002653,2]
[421570984,1777894232000,-223.0,0.00024,2]
[421570981,1777894232000,-10043.11094307,0.000238,2]
[421570986,1777894232000,-1479.5129933,0.00024323,2]
[421570979,1777894232000,-179.8911,0.0002354,2]
[421570982,1777894232000,-331.0,0.00023941,2]
[421570980,1777894232000,-376.0,0.00023799,2]
[421570983,1777894232000,-189.32,0.00024,14]
[421570999,1777894232000,-151.0,0.00028267,2]
[421570988,1777894232000,-170.9,0.00024658,2]
[421570998,1777894232000,-500.0,0.0002748,2]
[421571000,1777894232000,-500.0,0.00029312,2]
[421570989,1777894232000,-171.32,0.00024658,2]
[421570990,1777894232000,-171.29,0.00024658,2]
[421570978,1777894232000,-179.8911,0.0002344,2]
[421571020,1777894232000,-600.15826322,0.00031048,2]
[421571053,1777894232000,-160.0,0.00033186,30]
[421571023,1777894232000,-155.0,0.00031186,30]
[421571060,1777894232000,-155.0,0.00033187,30]
[421571061,1777894232000,-167.0,0.00033187,30]
[421571062,1777894232000,-2500.0,0.00033195,120]
[421571058,1777894232000,-155.0,0.00033187,30]
[421571059,1777894232000,-327.0,0.00033187,30]
[421571063,1777894232000,-1267.0,0.00033421,2]
[421571064,1777894232000,-2463.0,0.00033421,2]
[421571066,1777894232000,-151.0,0.00034182,7]
[421571065,1777894232000,-224.27,0.00033898,120]
[421571071,1777894232000,-163.46086277,0.00034186,30]
[421571068,1777894232000,-223.0,0.00034186,30]
[421571067,1777894232000,-160.0,0.00034186,30]
[421571056,1777894232000,-154.0,0.00033186,30]
[421571074,1777894232000,-155.0,0.00034187,30]
[421571076,1777894232000,-156.84,0.00034247,2]
[421571072,1777894232000,-161.31781928,0.00034187,30]
[421571073,1777894232000,-327.0,0.00034187,30]
[421571070,1777894232000,-154.0,0.00034186,30]
[421571069,1777894232000,-155.0,0.00034186,30]
[421571078,1777894232000,-170.38,0.00034427,2]
[421571077,1777894232000,-272.07,0.0003434,2]
[421571079,1777894232000,-224.27,0.00034638,120]
[421571024,1777894232000,-154.0,0.00031186,30]
[421571080,1777894232000,-155.5,0.00034658,2]
[421571081,1777894232000,-10278.67638082,0.00034668,2]
[421571083,1777894232000,-59073.49999997,0.00034668,2]
[421571075,1777894232000,-150.0,0.0003419,2]
[421571057,1777894232000,-153.0,0.00033186,30]
[421571082,1777894232000,-11891.65721465,0.00034668,2]
[421571052,1777894232000,-224.27,0.00033158,120]
[421571046,1777894232000,-481.0,0.00032325,30]
[421571025,1777894232000,-153.0,0.00031186,30]
[421571028,1777894232000,-155.0,0.00031187,30]
[421571030,1777894232000,-200.0,0.00031266,2]
[421571032,1777894232000,-150.0,0.00031505,2]
[421571031,1777894232000,-200.0,0.00031273,2]
[421571029,1777894232000,-159.0,0.00031187,30]
[421571034,1777894232000,-418.92762126,0.00032013,2]
[421571033,1777894232000,-300.0,0.00031683,2]
[421571040,1777894232000,-155.0,0.00032187,30]
[421571039,1777894232000,-153.0,0.00032186,30]
[421571037,1777894232000,-155.0,0.00032186,30]
[421571035,1777894232000,-160.0,0.00032186,30]
[421571038,1777894232000,-154.0,0.00032186,30]
[421571041,1777894232000,-327.0,0.00032187,30]
[421571050,1777894232000,-504.0,0.00033011,8]
[421571048,1777894232000,-202.57403968,0.00032725,2]
[421571036,1777894232000,-223.0,0.00032186,30]
[421571043,1777894232000,-159.0,0.00032187,30]
[421571049,1777894232000,-231.52,0.00032785,2]
[421571054,1777894232000,-223.0,0.00033186,30]
[421571055,1777894232000,-155.0,0.00033186,30]
[421571044,1777894232000,-151.0,0.0003221,5]
[421571045,1777894232000,-499.0,0.0003224,2]
[421571047,1777894232000,-150.0,0.00032562,2]
[421571042,1777894232000,-155.0,0.00032187,30]
[421571051,1777894232000,-2000.0,0.00033137,2]
[421571086,1777894233000,-3878.1223736,0.00034668,2]
[421571085,1777894233000,-471.84604647,0.00034668,2]
[421571087,1777894233000,-6544.65756157,0.00034668,2]
[421571084,1777894233000,-961.63686896,0.00034668,2]
[421571100,1777894237000,-960.0,0.00034668,30]
[421571088,1777894237000,-171.08,0.00024658,2]
[421571090,1777894237000,-171.08,0.00027397,7]
[421571095,1777894237000,-171.08,0.00029599,7]
[421571099,1777894237000,-1477.83706326,0.00034645,2]
[421571097,1777894237000,-171.08,0.00030136,30]
[421571098,1777894237000,-28.99842887,0.00034645,2]
[421571093,1777894237000,-171.07,0.00029599,2]
[421571102,1777894237000,-596.40831309,0.00034668,2]
[421571101,1777894237000,-2297.57148399,0.00034668,2]
[421571103,1777894238000,-500.0,0.0002874,2]
[421571104,1777894238000,-5191.908,0.00034668,2]
[421571129,1777894240000,-1525.26389508,0.00034668,2]
[421571170,1777894243000,-500.0,0.00035899,15]
[421571167,1777894243000,-500.0,0.00035899,15]
[421571166,1777894243000,-500.0,0.00035899,15]
[421571169,1777894243000,-500.0,0.00035899,15]
[421571168,1777894243000,-500.0,0.00035899,15]
[421571172,1777894243000,-418.02694857,0.00035899,15]
[421571179,1777894243000,-150.0,0.00035899,2]
[421571177,1777894243000,-500.0,0.00035899,15]
[421571173,1777894243000,-500.0,0.00035899,15]
[421571178,1777894243000,-500.0,0.00035899,15]
[421571176,1777894243000,-500.0,0.00035899,15]
[421571180,1777894243000,-127780.90620085,0.000359,120]
[421571183,1777894243000,-151.0,0.00036153,30]
[421571175,1777894243000,-500.0,0.00035899,15]
[421571164,1777894243000,-2242.35732713,0.00035825,2]
[421571163,1777894243000,-328.03,0.00035751,2]
[421571161,1777894243000,-1506.83549206,0.00035493,2]
[421571149,1777894243000,-624.0,0.00033421,2]
[421571158,1777894243000,-327.0,0.00035187,30]
[421571159,1777894243000,-155.0,0.00035187,30]
[421571150,1777894243000,-481.0,0.00034668,30]
[421571155,1777894243000,-223.0,0.00035186,30]
[421571154,1777894243000,-160.0,0.00035186,30]
[421571162,1777894243000,-5000.0,0.00035751,2]
[421571152,1777894243000,-1214.319,0.00034745,39]
[421571157,1777894243000,-154.0,0.00035186,30]
[421571156,1777894243000,-155.0,0.00035186,30]
[421571181,1777894243000,-504.0,0.00035947,11]
[421571160,1777894243000,-224.27,0.00035378,120]
[421571171,1777894243000,-500.0,0.00035899,15]
[421571174,1777894243000,-500.0,0.00035899,15]
[421571151,1777894243000,-304365.2815618,0.00034668,2]
[421571185,1777894243000,-160.0,0.00036186,30]
[421571153,1777894243000,-180.498,0.00034745,39]
[421571184,1777894243000,-333.96317184,0.00036164,2]
[421571202,1777894243000,-224.27,0.00036857,120]
[421571207,1777894243000,-154.0,0.00037186,30]
[421571206,1777894243000,-155.0,0.00037186,30]
[421571203,1777894243000,-4258.0,0.00037,5]
[421571204,1777894243000,-164.0,0.00037186,30]
[421571208,1777894243000,-327.0,0.00037187,30]
[421571205,1777894243000,-223.0,0.00037186,30]
[421571211,1777894243000,-150.0,0.00037694,2]
[421571212,1777894243000,-150.0,0.0003783,2]
[421571214,1777894243000,-150.0,0.000379,10]
[421571215,1777894243000,-39408.94896546,0.0003793,2]
[421571213,1777894243000,-150.0,0.0003783,2]
[421571216,1777894243000,-142.11080175,0.0003793,2]
[421571217,1777894243000,-1337.71693204,0.0003793,2]
[421571210,1777894243000,-224.27,0.00037597,120]
[421571201,1777894243000,-2000.0,0.00036819,2]
[421571182,1777894243000,-224.27,0.00036117,120]
[421571199,1777894243000,-1506.83549206,0.0003634,2]
[421571187,1777894243000,-155.0,0.00036186,30]
[421571195,1777894243000,-500.0,0.00036199,2]
[421571196,1777894243000,-500.0,0.00036199,2]
[421571186,1777894243000,-223.0,0.00036186,30]
[421571197,1777894243000,-500.0,0.00036199,2]
[421571188,1777894243000,-154.0,0.00036186,30]
[421571189,1777894243000,-327.0,0.00036187,30]
[421571198,1777894243000,-322.32387054,0.00036199,2]
[421571190,1777894243000,-155.0,0.00036187,30]
[421571191,1777894243000,-1691.7929737,0.00036199,2]
[421571194,1777894243000,-500.0,0.00036199,2]
[421571193,1777894243000,-2918.1232617,0.00036199,2]
[421571200,1777894243000,-2463.0,0.00036421,2]
[421571209,1777894243000,-166.0,0.00037187,30]
[421571192,1777894243000,-212.4487687,0.00036199,2]
[421571231,1777894246000,-3662.3432222,0.0003793,2]
[421571230,1777894246000,-685.35382291,0.0003793,2]
[421571229,1777894246000,-209.56355865,0.00029999,2]
[421571266,1777894859000,197.11,0.00029091,120]
[421571274,1777895350000,-290.4,0.00016438,2]
[421571276,1777895350000,-290.4,0.0001841,2]
[421571275,1777895350000,-1335.86747196,0.00017442,2]
[421571273,1777895350000,-365.0,0.00015856,2]
[421571279,1777895350000,-160.82247471,0.00019958,2]
[421571278,1777895350000,-160.0,0.00019951,2]
[421571280,1777895350000,-2296.19981314,0.00019972,2]
[421571277,1777895350000,-162.48539177,0.00019951,2]
[421571281,1777895350000,-647.52535642,0.0002,2]
[421571284,1777895431000,-350.97336375,0.0002,2]
[421571285,1777895431000,-161.0,0.0002,2]
[421571303,1777895432000,-1200.0,0.00026968,2]
[421571305,1777895432000,-5000.0,0.00026969,2]
[421571304,1777895432000,-300.0,0.00026968,2]
[421571306,1777895432000,-478.0,0.00026969,2]
[421571316,1777895432000,-169.72,0.00027729,30]
[421571308,1777895432000,-689.49,0.00027,2]
[421571318,1777895432000,-150.0,0.00027838,7]
[421571317,1777895432000,-6729.59,0.00027743,2]
[421571309,1777895432000,-500.0,0.00027052,2]
[421571311,1777895432000,-512.0,0.00027137,2]
[421571312,1777895432000,-3854.23327086,0.00027294,2]
[421571302,1777895432000,-262.0,0.00026968,2]
[421571307,1777895432000,-166.58892006,0.00027,2]
[421571299,1777895432000,-166.11,0.00026727,2]
[421571290,1777895432000,-174.26159303,0.00022353,2]
[421571300,1777895432000,-805.0,0.00026968,2]
[421571301,1777895432000,-300.0,0.00026968,2]
[421571297,1777895432000,-264.71027063,0.00026375,2]
[421571296,1777895432000,-290.4,0.00026296,2]
[421571295,1777895432000,-251.16435265,0.00024942,2]
[421571293,1777895432000,-290.4,0.00024324,2]
[421571294,1777895432000,-571.44291331,0.00024932,2]
[421571292,1777895432000,-566.22,0.00022562,2]
[421571291,1777895432000,-260.48398543,0.00022462,2]
[421571289,1777895432000,-116.13840697,0.00022353,2]
[421571286,1777895432000,-130.05930108,0.00020381,2]
[421571288,1777895432000,-656.82,0.00020951,2]
[421571287,1777895432000,-160.34069892,0.00020381,2]
[421571310,1777895432000,-150.99,0.00027137,2]
[421571298,1777895432000,-172.68,0.00026675,2]
[421571319,1777895432000,-150.0,0.00027838,7]
[421571320,1777895432000,-150.0,0.00027838,7]
[421571314,1777895432000,-196.57,0.00027608,2]
[421571348,1777895432000,-2103.43825553,0.00029373,2]
[421571345,1777895432000,-202267.5479676,0.00029373,2]
[421571346,1777895432000,-1803.64591351,0.00029373,2]
[421571347,1777895432000,-74868.03174589,0.00029373,2]
[421571340,1777895432000,-500.0,0.00029372,2]
[421571313,1777895432000,-1000.0,0.0002758,2]
[421571338,1777895432000,-500.0,0.00029372,2]
[421571341,1777895432000,-219.00222718,0.00029372,2]
[421571337,1777895432000,-500.0,0.00029372,2]
[421571336,1777895432000,-175.27056068,0.00029372,2]